fUST/lending_fUST_20250718
["ID","MTS","AMOUNT","RATE_DAILY","PERIOD"]
[372973652,1752827438389,-178.39,0.00018851,2]
[372973654,1752827438398,-460.0,0.00018851,2]
[372973656,1752827438408,-460.0,0.00018851,2]
[372973658,1752827438418,-460.0,0.00018851,2]
[372973660,1752827438427,-401.49,0.00018851,2]
[372973662,1752827438438,-526.53,0.00018851,2]
[372973665,1752827438448,-460.0,0.00018851,2]
[372973667,1752827438461,-1955.56520611,0.000189,2]
[372973669,1752827438470,-207.36127627,0.000189,2]
[372973671,1752827438480,-205.0,0.00018959,3]
[372973672,1752827438490,-460.0,0.00019125,2]
[372973675,1752827438501,-445.4,0.00019125,2]
[372973676,1752827438511,-460.0,0.00019125,2]
[372973678,1752827438520,-460.0,0.00019125,2]
[372973680,1752827438531,-460.0,0.00019125,2]
[372973683,1752827438540,-460.0,0.00019125,2]
[372973685,1752827438550,-234.095879,0.00019178,2]
[372973687,1752827438559,-460.0,0.00019399,2]
[372973689,1752827438571,-460.0,0.00019399,2]
[372973691,1752827438582,-460.0,0.00019399,2]
[372973693,1752827438591,-500.83,0.00019399,2]
[372973695,1752827438600,-460.0,0.00019399,2]
[372973697,1752827438609,-290.37352331,0.00019462,2]
[372973699,1752827438618,-207.36127627,0.00019483,2]
[372973701,1752827438627,-451.94,0.00019673,2]
[372973703,1752827438636,-460.0,0.00019673,2]
[372973704,1752827438645,-460.0,0.00019673,2]
[372973707,1752827438655,-460.0,0.00019673,2]
[372973709,1752827438665,-460.0,0.00019947,2]
[372973711,1752827438675,-460.0,0.00019947,2]
[372973713,1752827438684,-460.0,0.00019947,2]
[372973715,1752827438693,-150.58450334,0.0002,7]
[372973717,1752827438705,-207.36127627,0.00020067,2]
[372973719,1752827438714,-248.625523,0.00020187,2]
[372973721,1752827438723,-460.0,0.00020221,2]
[372973723,1752827438733,-460.0,0.00020221,2]
[372973725,1752827438742,-290.37352331,0.00020445,2]
[372973727,1752827438752,-460.0,0.00020495,2]
[372973729,1752827438760,-567.3046554,0.00020495,2]
[372973730,1752827438770,-207.36127627,0.0002065,3]
[372973732,1752827438779,-460.0,0.00020769,2]
[372973734,1752827438788,-407.286,0.00020877,2]
[372973736,1752827438797,-297.11906813,0.00021043,2]
[372973738,1752827438807,-207.36127627,0.00021233,4]
[372973740,1752827438816,-290.37352331,0.00021429,2]
[372973742,1752827438826,-6216.1137926,0.00021445,2]
[372973745,1752827438835,-998.33748995,0.00021659,2]
[372973747,1752827438845,-6216.1137926,0.00021782,2]
[372973749,1752827438854,-207.36127627,0.00021817,6]
[372973750,1752827438863,-500.0,0.00021868,2]
[372973753,1752827438872,-4906.464,0.00021918,2]
[372973755,1752827438882,-3000.0,0.00021995,2]
[372973757,1752827438891,-171.0,0.00022,2]
[372973759,1752827438900,-1867.03,0.00022,7]
[372973761,1752827438910,-6216.1137926,0.0002204,2]
[372973763,1752827438919,-177.0,0.00022247,6]
[372973778,1752827439050,-207.36127627,0.000224,7]
[372973781,1752827439065,-290.37352331,0.00022412,2]
[372973783,1752827439075,-3797.21989088,0.0002249,7]
[372973785,1752827439084,-231.86930555,0.00022542,5]
[372973787,1752827439093,-250.40179828,0.00022542,5]
[372973789,1752827439102,-3000.0,0.0002255,2]
[372973791,1752827439111,-12500.0,0.00022561,7]
[372973793,1752827439120,-12500.0,0.0002257,7]
[372973795,1752827439130,-12500.0,0.00022578,7]
[372973797,1752827439139,-500.0,0.00022586,2]
[372973799,1752827439148,-500.0,0.00022586,2]
[372973800,1752827439157,-500.0,0.00022586,2]
[372973801,1752827439166,-500.0,0.00022586,2]
[372973802,1752827439175,-500.0,0.00022586,2]
[372973803,1752827439184,-500.0,0.00022586,2]
[372973804,1752827439194,-500.0,0.00022586,2]
[372973805,1752827439206,-500.0,0.00022586,2]
[372973806,1752827439215,-500.0,0.00022586,2]
[372973807,1752827439224,-500.0,0.00022586,2]
[372973808,1752827439234,-500.0,0.00022586,2]
[372973809,1752827439244,-500.0,0.00022586,2]
[372973810,1752827439253,-12500.0,0.00022587,7]
[372973811,1752827439263,-12610.43989422,0.00022587,7]
[372973812,1752827439272,-12500.0,0.00022596,7]
[372973813,1752827439282,-234.095879,0.00022603,2]
[372973814,1752827439291,-3000.0,0.00022639,2]
[372973815,1752827439301,-1039.57238948,0.0002277,2]
[372973816,1752827439310,-3000.0,0.00022955,2]
[372973817,1752827439320,-500.0,0.00022964,2]
[372973818,1752827439330,-2007.36919205,0.0002298,2]
[372973819,1752827439339,-207.36127627,0.00022983,8]
[372973820,1752827439349,-40233.64322167,0.00023,10]
[372973821,1752827439359,-38322.07646454,0.00023,2]
[372973822,1752827439369,-558.00221215,0.00023198,2]
[372973823,1752827439378,-214.4881157,0.00023199,3]
[372973824,1752827439388,-476.25663856,0.00023199,3]
[372973825,1752827439397,-839.30593155,0.00023199,3]
[372973826,1752827439406,-230.89969799,0.00023199,3]
[372973827,1752827439416,-160.0,0.00023199,3]
[372973828,1752827439426,-160.0,0.00023199,3]
[372973829,1752827439436,-12610.43989422,0.00023199,3]
[372973830,1752827439446,-525.75194068,0.00023199,3]
[372973831,1752827439457,-884.88,0.000232,2]
[372973832,1752827439468,-500.0,0.00023273,2]
[372973833,1752827439477,-151.0,0.00023299,2]
[372973834,1752827439488,-151.0,0.00023299,2]
[372973835,1752827439501,-207.4,0.00023299,2]
[372973836,1752827439511,-151.0,0.00023299,2]
[372973837,1752827439520,-151.0,0.00023299,2]
[372973838,1752827439531,-151.0,0.00023299,2]
[372973839,1752827439540,-151.0,0.00023299,2]
[372973841,1752827439550,-151.0,0.00023299,2]
[372973843,1752827439560,-151.0,0.00023299,2]
[372973845,1752827439570,-151.0,0.00023299,2]
[372973848,1752827439580,-151.0,0.00023299,2]
[372973850,1752827439589,-151.0,0.00023299,2]
[372973851,1752827439599,-3801.642,0.00023299,2]
[372973852,1752827439608,-151.0,0.00023299,2]
[372973854,1752827439617,-151.0,0.00023299,2]
[372973855,1752827439626,-151.0,0.00023299,2]
[372973858,1752827439636,-151.0,0.00023299,2]
[372973860,1752827439646,-151.0,0.00023299,2]
[372973862,1752827439656,-151.0,0.00023299,2]
[372973864,1752827439665,-151.0,0.00023299,2]
[372973865,1752827439674,-151.0,0.00023299,2]
[372973868,1752827439684,-151.0,0.00023299,2]
[372973870,1752827439693,-151.0,0.00023299,2]
[372973872,1752827439702,-151.0,0.00023299,2]
[372973873,1752827439713,-151.0,0.00023299,2]
[372973876,1752827439722,-151.0,0.00023299,2]
[372973878,1752827439731,-151.0,0.00023299,2]
[372973879,1752827439742,-151.0,0.00023299,2]
[372973881,1752827439751,-151.0,0.00023299,2]
[372973883,1752827439760,-151.0,0.00023299,2]
[372973885,1752827439769,-151.0,0.00023299,2]
[372973888,1752827439780,-151.0,0.00023299,2]
[372973889,1752827439789,-151.0,0.00023299,2]
[372973891,1752827439798,-151.0,0.00023299,2]
[372973893,1752827439807,-151.0,0.00023299,2]
[372973895,1752827439817,-151.0,0.00023299,2]
[372973897,1752827439826,-159.14388846,0.00023299,2]
[372973899,1752827439835,-151.0,0.00023299,2]
[372973902,1752827439845,-25000.0,0.00023299,2]
[372973904,1752827439854,-22322.36398369,0.00023299,2]
[372973906,1752827439864,-3942.302754,0.00023354,2]
[372973908,1752827439873,-290.37352331,0.00023396,2]
[372973910,1752827439882,-1662.9171888,0.00023409,2]
[372973912,1752827439892,-3000.0,0.0002355,2]
[372973914,1752827439902,-200.0,0.00023561,2]
[372973916,1752827439911,-200.0,0.00023561,2]
[372973918,1752827439920,-200.0,0.00023561,2]
[372973920,1752827439929,-200.0,0.00023561,2]
[372973922,1752827439938,-200.0,0.00023561,2]
[372973924,1752827439947,-200.0,0.00023561,2]
[372973926,1752827439959,-200.0,0.00023561,2]
[372973928,1752827439969,-200.0,0.00023561,2]
[372973930,1752827439978,-200.0,0.00023561,2]
[372973932,1752827439988,-200.0,0.00023561,2]
[372973934,1752827439997,-200.0,0.00023561,2]
[372973935,1752827440006,-200.0,0.00023561,2]
[372973938,1752827440016,-200.0,0.00023561,2]
[372973940,1752827440025,-200.0,0.00023561,2]
[372973941,1752827440035,-200.0,0.00023561,2]
[372973944,1752827440045,-200.0,0.00023561,2]
[372973946,1752827440054,-200.0,0.00023561,2]
[372973948,1752827440063,-200.0,0.00023561,2]
[372973950,1752827440073,-200.0,0.00023561,2]
[372973952,1752827440082,-207.36127627,0.00023567,9]
[372973954,1752827440091,-1867.03,0.000237,7]
[372973956,1752827440101,-558.00221213,0.0002374,2]
[372973958,1752827440110,-155.324771,0.00023776,3]
[372973960,1752827440119,-200.0,0.00023782,2]
[372973962,1752827440128,-9850.44153756,0.000238,2]
[372973964,1752827440137,-1035.44548733,0.00023821,2]
[372973966,1752827440147,-25000.0,0.00023847,2]
[372973968,1752827440157,-2055.93,0.00023892,2]
[372973970,1752827440166,-1955.56520611,0.000239,2]
[372973973,1752827440175,-155.324771,0.00023968,3]
[372973975,1752827440185,-839.30593155,0.00024,10]
[372973977,1752827440194,-230.89969799,0.00024,10]
[372973979,1752827440203,-525.75194068,0.00024,7]
[372973981,1752827440213,-525.75194068,0.00024,10]
[372973983,1752827440222,-200.0,0.00024056,2]
[372973985,1752827440231,-2631.88642742,0.0002409,2]
[372973987,1752827440240,-207.36127627,0.0002415,10]
[372973989,1752827440250,-2631.88642742,0.0002419,2]
[372973991,1752827440259,-23268.62089825,0.000242,2]
[372973993,1752827440268,-558.00221213,0.00024282,2]
[372973995,1752827440277,-2631.88642742,0.0002429,2]
[372973997,1752827440286,-163.98184822,0.00024301,2]
[372973999,1752827440296,-163.98184823,0.00024301,2]
[372974001,1752827440305,-309.52710723,0.0002433,2]
[372974003,1752827440314,-290.37352331,0.00024379,2]
[372974005,1752827440325,-2631.88642742,0.0002439,2]
[372974007,1752827440334,-25000.0,0.00024395,2]
[372974009,1752827440343,-961.60473553,0.00024468,2]
[372974011,1752827440353,-2631.88642742,0.0002449,2]
[372974014,1752827440362,-1523.49574857,0.00024523,2]
[372974015,1752827440372,-6087.88901129,0.00024523,2]
[372974017,1752827440381,-4619.31525862,0.00024523,2]
[372974020,1752827440391,-2631.88642742,0.0002459,2]
[372974022,1752827440401,-51231.29243706,0.0002465,2]
[372974023,1752827440410,-215.0738,0.00024668,2]
[372974026,1752827440420,-2631.88642742,0.0002469,2]
[372974028,1752827440429,-207.36127627,0.00024733,11]
[372974030,1752827440439,-2631.88642742,0.0002479,2]
[372974031,1752827440448,-17669.77879333,0.000248,3]
[372974034,1752827440459,-429.318869,0.00024808,2]
[372974035,1752827440468,-429.318869,0.00024808,2]
[372974038,1752827440478,-429.318869,0.00024808,2]
[372974040,1752827440488,-429.318869,0.00024808,2]
[372974042,1752827440502,-429.318869,0.00024808,2]
[372974044,1752827440511,-558.00221213,0.00024823,2]
[372974046,1752827440520,-2631.88642742,0.0002489,2]
[372974048,1752827440530,-3844.15,0.000249,7]
[372974050,1752827440540,-14572.46,0.000249,7]
[372974052,1752827440549,-530.47071702,0.000249,3]
[372974054,1752827440559,-1973.524237,0.000249,2]
[372974056,1752827440568,-476.25663856,0.000249,7]
[372974058,1752827440578,-839.30593155,0.000249,7]
[372974060,1752827440587,-230.89969799,0.000249,7]
[372974062,1752827440596,-160.0,0.000249,7]
[372974064,1752827440606,-3782.19804467,0.000249,2]
[372974066,1752827440615,-54263.47087589,0.000249,2]
[372974078,1752827440729,-7378.58762295,0.000249,2]
[372974081,1752827440740,-72163.54834076,0.000249,2]
[372974083,1752827440752,-88479.71517073,0.000249,2]
[372974363,1752827446064,-169.12,0.00018851,2]
[372974365,1752827446074,-460.0,0.00020221,2]
[372974367,1752827446084,-460.0,0.00020495,2]
[372974369,1752827446093,-460.0,0.00020769,2]
[372974371,1752827446103,-460.0,0.00021043,2]
[372974373,1752827446112,-395.55808067,0.00021316,2]
[372974375,1752827446121,-1169.52191933,0.00021908,10]
[372975114,1752828194597,1178.0,0.00024658,60]
[372975115,1752828347099,-300.0,0.00017998,2]
[372975116,1752828347121,-39.72620407,0.00017998,2]
[372975117,1752828351996,254.947509,0.00013699,2]
[372975119,1752828428100,-243.27379593,0.00017998,2]
[372975120,1752828428121,-741.47591899,0.00017998,2]
[372975121,1752828436098,-294.52408101,0.00017998,2]
[372975122,1752828436118,-460.0,0.00017999,2]
[372975123,1752828436138,-229.2491685,0.00017999,2]
[372975124,1752828436157,-460.87966923,0.00017999,2]
[372975125,1752828436177,-460.0,0.00017999,2]
[372975126,1752828436198,-209.09007417,0.00017999,2]
[372975127,1752828436218,-460.0,0.00017999,2]
[372975128,1752828436238,-460.0,0.00017999,2]
[372975129,1752828436257,-360.36331715,0.00017999,2]
[372975130,1752828436278,-460.0,0.00017999,2]
[372975131,1752828436304,-594.84,0.00018577,2]
[372975132,1752828436324,-160.0,0.000188,2]
[372975133,1752828436346,-594.84,0.00018851,2]
[372975134,1752828436367,-192.0,0.00018932,3]
[372975135,1752828436388,-594.84,0.00019125,2]
[372975136,1752828436408,-594.84,0.00019399,2]
[372975137,1752828436428,-594.84,0.00019673,2]
[372975138,1752828436449,-191.307124,0.00019733,2]
[372975139,1752828436470,-594.84,0.00019947,2]
[372975140,1752828436490,-254.947509,0.00020187,2]
[372975141,1752828436660,-594.84,0.00020221,2]
[372975142,1752828436684,-594.84,0.00020495,2]
[372975143,1752828436706,-594.84,0.00020769,2]
[372975144,1752828436728,-594.84,0.00021043,2]
[372975145,1752828436750,-231.86930555,0.00021212,5]
[372975146,1752828436770,-250.40179828,0.00021212,5]
[372975147,1752828436797,-594.84,0.00021316,2]
[372975148,1752828436818,-594.84,0.0002159,2]
[372975149,1752828436839,-6216.11379265,0.00021829,2]
[372975150,1752828436860,-594.84,0.00021864,2]
[372975151,1752828436881,-500.0,0.00021868,2]
[372975152,1752828436901,-171.0,0.00022,2]
[372975153,1752828436927,-171.0,0.00022,2]
[372975154,1752828436949,-205.65480863,0.00022095,2]
[372975155,1752828436970,-460.0,0.00022137,2]
[372975156,1752828436991,-594.84,0.00022138,2]
[372975157,1752828437015,-6216.11379265,0.00022164,2]
[372975158,1752828437037,-525.75194068,0.00022186,2]
[372975159,1752828437058,-214.4881157,0.00022186,2]
[372975160,1752828437077,-839.30593155,0.00022186,2]
[372975161,1752828437099,-215.63268315,0.00022186,2]
[372975162,1752828437119,-12610.43989422,0.00022186,2]
[372975163,1752828437139,-160.0,0.00022186,2]
[372975164,1752828437161,-230.89969799,0.00022186,2]
[372975165,1752828437184,-476.25663856,0.00022186,2]
[372975166,1752828437204,-160.0,0.00022186,2]
[372975167,1752828437227,-460.0,0.00022222,2]
[372975168,1752828437250,-325.829,0.00022242,2]
[372975169,1752828437271,-460.0,0.0002226,2]
[372975170,1752828437295,-460.0,0.0002226,2]
[372975171,1752828437322,-460.0,0.0002226,2]
[372975172,1752828437344,-460.0,0.0002226,2]
[372975173,1752828437364,-460.0,0.0002226,2]
[372975174,1752828437384,-460.0,0.00022278,2]
[372975175,1752828437406,-594.84,0.00022412,2]
[372975176,1752828437426,-6216.11379265,0.00022448,2]
[372975177,1752828437447,-5625.26,0.00022461,10]
[372975178,1752828437469,-8027.06,0.00022461,10]
[372975179,1752828437490,-6689.22,0.00022461,10]
[372975180,1752828437511,-9632.48,0.0002247,10]
[372975181,1752828437531,-8335.27311968,0.00022471,7]
[372975331,1752828633131,-460.0,0.00017999,2]
[372975333,1752828633142,-460.0,0.00018273,2]
[372975335,1752828633152,-460.0,0.00018547,2]
[372975337,1752828633162,-460.0,0.00018821,2]
[372975340,1752828633173,-155.0,0.00018932,3]
[372975342,1752828633182,-460.0,0.00019095,2]
[372975344,1752828633192,-460.0,0.00019369,2]
[372975346,1752828633202,-460.0,0.00019643,2]
[372975348,1752828633216,-460.0,0.00019917,2]
[372975350,1752828633227,-187.276704,0.00019959,2]
[372975351,1752828633237,-460.0,0.00020191,2]
[372975354,1752828633249,-460.0,0.00020465,2]
[372975356,1752828633259,-460.0,0.00020739,2]
[372975358,1752828633270,-293.65,0.00021013,2]
[372975360,1752828633280,-336.85607999,0.00021863,2]
[372975362,1752828633290,-460.0,0.00022137,2]
[372975363,1752828633300,-460.0,0.00022222,2]
[372975365,1752828633310,-179.94795756,0.00022387,2]
[372975367,1752828633320,-460.0,0.00022411,2]
[372975369,1752828633330,-2574.06095345,0.00022471,7]
[372975838,1752828638056,-1590.66592687,0.00022471,7]
[372975840,1752828638066,-476.25663856,0.00022471,7]
[372975842,1752828638076,-160.0,0.00022477,2]
[372975844,1752828638086,-12500.0,0.0002248,7]
[372975846,1752828638095,-525.75194068,0.00022487,2]
[372975848,1752828638105,-839.30593155,0.00022487,2]
[372975850,1752828638116,-214.4881157,0.00022487,2]
[372975852,1752828638128,-12610.43989422,0.00022487,2]
[372975854,1752828638139,-230.89969799,0.00022487,2]
[372975857,1752828638151,-160.0,0.00022487,2]
[372975859,1752828638163,-476.25663856,0.00022487,2]
[372975861,1752828638174,-12500.0,0.00022489,7]
[372975863,1752828638187,-194.48,0.00022496,2]
[372975866,1752828638198,-12500.0,0.00022498,7]
[372975868,1752828638208,-2074.47,0.000225,7]
[372975870,1752828638222,-12500.0,0.00022506,7]
[372975872,1752828638232,-2740.1,0.00022514,10]
[372975874,1752828638244,-12500.0,0.00022515,7]
[372975876,1752828638255,-12500.0,0.00022524,7]
[372975878,1752828638266,-460.0,0.00022533,2]
[372975880,1752828638277,-1303.7101374,0.00022558,2]
[372975883,1752828638288,-214.4881157,0.00022561,7]
[372975885,1752828638299,-4271.28,0.000226,7]
[372975887,1752828638309,-460.0,0.00022685,2]
[372975889,1752828638320,-162.0,0.00022767,8]
[372975891,1752828638331,-179.94795754,0.00022813,2]
[372975893,1752828638342,-500.0,0.00022964,2]
[372975895,1752828638353,-200.0,0.00023,2]
[372975898,1752828638365,-313.19,0.00023,5]
[372975900,1752828638377,-388.04,0.0002309,3]
[372975902,1752828638389,-16191.62,0.000231,7]
[372975904,1752828638401,-283.29263174,0.00023199,2]
[372975907,1752828638412,-507.5,0.00023199,2]
[372975909,1752828638423,-215.63268315,0.00023199,3]
[372975911,1752828638434,-214.4881157,0.00023199,3]
[372975913,1752828638444,-179.94795754,0.00023238,2]
[372975915,1752828638455,-207.4,0.00023299,2]
[372975917,1752828638469,-151.0,0.00023299,2]
[372975920,1752828638480,-151.0,0.00023299,2]
[372975922,1752828638490,-184.17851102,0.00023299,2]
[372975924,1752828638500,-151.0,0.00023299,2]
[372975926,1752828638511,-151.0,0.00023299,2]
[372975928,1752828638522,-151.0,0.00023299,2]
[372975930,1752828638533,-151.0,0.00023299,2]
[372975932,1752828638543,-151.0,0.00023299,2]
[372975934,1752828638554,-151.0,0.00023299,2]
[372975936,1752828638564,-151.0,0.00023299,2]
[372975938,1752828638575,-151.0,0.00023299,2]
[372975941,1752828638585,-151.0,0.00023299,2]
[372975943,1752828638595,-151.0,0.00023299,2]
[372975945,1752828638605,-151.0,0.00023299,2]
[372975947,1752828638615,-151.0,0.00023299,2]
[372975949,1752828638625,-151.0,0.00023299,2]
[372975951,1752828638636,-3801.642,0.00023299,2]
[372975953,1752828638647,-151.0,0.00023299,2]
[372975955,1752828638657,-151.0,0.00023299,2]
[372975958,1752828638668,-151.0,0.00023299,2]
[372975960,1752828638679,-151.0,0.00023299,2]
[372975962,1752828638691,-151.0,0.00023299,2]
[372975964,1752828638702,-151.0,0.00023299,2]
[372975967,1752828638716,-151.0,0.00023299,2]
[372975969,1752828638728,-151.0,0.00023299,2]
[372975971,1752828638739,-151.0,0.00023299,2]
[372975973,1752828638750,-151.0,0.00023299,2]
[372975975,1752828638762,-151.0,0.00023299,2]
[372975977,1752828638774,-151.0,0.00023299,2]
[372975980,1752828638785,-151.0,0.00023299,2]
[372975982,1752828638796,-151.0,0.00023299,2]
[372975984,1752828638807,-151.0,0.00023299,2]
[372975986,1752828638818,-151.0,0.00023299,2]
[372975988,1752828638830,-159.14388846,0.00023299,2]
[372975991,1752828638842,-151.0,0.00023299,2]
[372975993,1752828638854,-151.0,0.00023299,2]
[372975995,1752828638864,-151.0,0.00023299,2]
[372975997,1752828638874,-151.0,0.00023299,2]
[372975999,1752828638884,-25000.0,0.00023299,2]
[372976001,1752828638896,-151.0,0.00023299,2]
[372976003,1752828638906,-22322.36398369,0.00023299,2]
[372976005,1752828638916,-3942.302754,0.00023354,2]
[372976007,1752828638927,-6216.11379265,0.00023358,2]
[372976009,1752828638938,-187.276704,0.00023384,2]
[372976012,1752828638951,-500.78190628,0.000234,2]
[372976014,1752828638963,-500.0,0.00023408,2]
[372976016,1752828638974,-500.0,0.00023408,2]
[372976018,1752828638985,-500.0,0.00023408,2]
[372976020,1752828638996,-500.0,0.00023408,2]
[372976022,1752828639006,-500.0,0.00023408,2]
[372976024,1752828639016,-500.0,0.00023408,2]
[372976026,1752828639028,-500.0,0.00023408,2]
[372976029,1752828639038,-500.0,0.00023408,2]
[372976031,1752828639048,-500.0,0.00023408,2]
[372976033,1752828639058,-500.0,0.00023408,2]
[372976035,1752828639070,-500.0,0.00023408,2]
[372976037,1752828639081,-643.82693711,0.00023408,2]
[372976039,1752828639092,-500.0,0.00023408,2]
[372976041,1752828639102,-500.0,0.00023408,2]
[372976043,1752828639113,-1662.9171888,0.00023409,2]
[372976045,1752828639123,-2055.93,0.00023458,2]
[372976048,1752828639133,-200.0,0.00023561,2]
[372976050,1752828639144,-200.0,0.00023561,2]
[372976051,1752828639154,-200.0,0.00023561,2]
[372976052,1752828639165,-200.0,0.00023561,2]
[372976053,1752828639176,-200.0,0.00023561,2]
[372976054,1752828639186,-200.0,0.00023561,2]
[372976055,1752828639196,-200.0,0.00023561,2]
[372976056,1752828639208,-200.0,0.00023561,2]
[372976058,1752828639223,-200.0,0.00023561,2]
[372976060,1752828639233,-200.0,0.00023561,2]
[372976062,1752828639243,-200.0,0.00023561,2]
[372976064,1752828639254,-200.0,0.00023561,2]
[372976066,1752828639265,-200.0,0.00023561,2]
[372976069,1752828639275,-200.0,0.00023561,2]
[372976070,1752828639286,-200.0,0.00023561,2]
[372976072,1752828639296,-200.0,0.00023561,2]
[372976075,1752828639307,-200.0,0.00023561,2]
[372976077,1752828639317,-200.0,0.00023561,2]
[372976079,1752828639328,-200.0,0.00023561,2]
[372976081,1752828639338,-200.0,0.00023561,2]
[372976083,1752828639348,-200.0,0.00023561,2]
[372976085,1752828639358,-179.94795754,0.00023664,2]
[372976088,1752828639368,-6216.11379265,0.0002372,2]
[372976090,1752828639378,-309.52710723,0.00023753,2]
[372976092,1752828639388,-991.583453,0.00023753,3]
[372976094,1752828639398,-25000.0,0.00023847,2]
[372976096,1752828639409,-402.936892,0.00023849,2]
[372976098,1752828639421,-6216.11379265,0.00023921,2]
[372976101,1752828639431,-215.63268315,0.00024,7]
[372976103,1752828639441,-215.63268315,0.00024,10]
[372976105,1752828639451,-163.98184823,0.00024,2]
[372976107,1752828639464,-525.75194068,0.00024,7]
[372976109,1752828639475,-525.75194068,0.00024,10]
[372976111,1752828639485,-2074.47,0.00024,7]
[372976113,1752828639495,-230.89969799,0.00024,7]
[372976115,1752828639505,-500.0,0.0002406,2]
[372976117,1752828639516,-179.94795754,0.0002409,2]
[372976119,1752828639526,-2607.89813119,0.00024095,2]
[372976121,1752828639536,-884.88,0.000241,2]
[372976123,1752828639547,-4271.28,0.000241,7]
[372976125,1752828639557,-281.83252455,0.00024195,2]
[372976128,1752828639567,-2607.89813119,0.00024195,2]
[372976131,1752828639578,-151.0,0.000242,8]
[372976134,1752828639588,-1060.14526963,0.00024201,2]
[372976137,1752828639598,-6216.11379265,0.00024263,2]
[372976140,1752828639609,-2607.89813119,0.00024295,2]
[372976143,1752828639619,-163.98184823,0.00024301,2]
[372976146,1752828639630,-2607.89813119,0.00024395,2]
[372976150,1752828639641,-25000.0,0.00024395,2]
[372976153,1752828639651,-151.0,0.000244,10]
[372976156,1752828639662,-151.0,0.000244,9]
[372976159,1752828639672,-6216.11379265,0.00024465,2]
[372976162,1752828639683,-961.60473553,0.00024468,2]
[372976165,1752828639694,-1060.1452696,0.00024492,2]
[372976169,1752828639706,-2607.89813119,0.00024495,2]
[372976172,1752828639721,-179.94795754,0.00024516,2]
[372976208,1752828639731,-1523.49574857,0.00024523,2]
[372976211,1752828639896,-225.0,0.00024583,2]
[372976214,1752828639906,-804900.30189897,0.00024588,2]
[372976217,1752828639919,-68357.75443729,0.00024588,2]
[372976221,1752828639931,-2328.55081501,0.00024588,2]
[372976224,1752828639943,-255752.67856423,0.00024588,2]
[372976227,1752828639952,-2607.89813119,0.00024595,2]
[372976230,1752828639965,-155.324771,0.00024597,9]
[372976233,1752828639975,-16191.62,0.000246,7]
[372976236,1752828639986,-225.0,0.00024629,2]
[372976239,1752828639995,-380.0,0.00024658,2]
[372976242,1752828640005,-155.324771,0.00024662,9]
[372976245,1752828640015,-215.0738,0.00024668,2]
[372976247,1752828640024,-2607.89813119,0.00024695,2]
[372976250,1752828640034,-151.0,0.000247,10]
[372976253,1752828640044,-151.0,0.000247,8]
[372976257,1752828640053,-281.83252453,0.00024781,2]
[372976260,1752828640063,-1060.1452696,0.00024784,2]
[372976261,1752828640073,-2607.89813119,0.00024795,2]
[372976264,1752828640083,-17669.77879333,0.000248,3]
[372976266,1752828640093,-476.25663856,0.000248,3]
[372976268,1752828640103,-839.30593155,0.000248,3]
[372976270,1752828640112,-230.89969799,0.000248,3]
[372976273,1752828640121,-160.0,0.000248,3]
[372976276,1752828640131,-160.0,0.000248,3]
[372976279,1752828640140,-12610.43989422,0.000248,3]
[372976282,1752828640150,-225.0,0.00024819,2]
[372976285,1752828640159,-1498.39861397,0.00024847,9]
[372976288,1752828640169,-500.0,0.00024873,2]